Cogmind - Beta 13 *** ADVENTURER MODE // 2024.04.10 @ 17:30:14 Player: Scribs Result: Destroyed by Y-45 Defender with Beam Rifle Performance ------------- Evolutions (2) 1000 Regions Visited (6) 1200 Robots Destroyed (36) 180 Value Destroyed (1361) 1361 Prototype IDs (5) 100 Alien Tech Used (0) 0 Bonus (53) 53 TOTAL SCORE: 3894 Bonus ------- High Alert Combat Kills 78 Follower Combat Kills 142 Friendly Fire -167 Cogmind --------- Core Integrity 0/550 Matter 300/300 Energy 50/100 System Corruption 1% Temperature Cool (9) Movement Core (400) Ox7 Location -8/Storage Parts ------- > --- POWER (2) -------- (None) > --- PROPULSION (4) --- (None) > --- UTILITY (3) ------ Improved Heat Sink Large Storage Unit > --- WEAPON (2) ------- Beam Cannon > --- INVENTORY (15) --- Cooled Ion Engine Light Angular Momentum Engine Carbon-fiber Leg Large Storage Unit Large Battery (200) Peak State ------------ > --- POWER ------------ Light Nuclear Core Light Angular Momentum Engine > --- PROPULSION ------- Aluminum Leg Carbon-fiber Leg Carbon-fiber Leg Carbon-fiber Leg > --- UTILITY ---------- Improved Heat Sink Large Storage Unit Remote Shield > --- WEAPON ----------- Heavy Particle Gun Improved Assault Rifle > --- INVENTORY -------- Cooled Ion Engine Light Angular Momentum Engine Aluminum Leg Aluminum Leg Aluminum Leg Aluminum Leg Carbon-fiber Leg Improved Heat Sink Large Storage Unit Large Battery Hardened Light Armor Plating Beam Cannon Advanced Beam Cannon Assault Rifle Rocket Launcher [Rating: 36] Favorites ----------- Power Ion Engine Engine Ion Engine Power Core Light Nuclear Core Propulsion Aluminum Leg Leg Aluminum Leg Utility Improved Heat Sink Device Improved Heat Sink Storage Large Storage Unit Processor Improved Terrain Scan Processor Protection Hardened Light Armor Plating Weapon Assault Rifle Energy Gun Heavy Particle Gun Energy Cannon Beam Cannon Ballistic Gun Assault Rifle Ballistic Cannon Flak Cannon Launcher Rocket Launcher Build | -11 -10 -10 -10 -9 -8 -8 ------- Run | Yrd Mat Min Exi Min Mat Sto Slots Evolved 4 | . . . . . 4 . Power 1 | . . . . . 1 . Propulsion 2 | . . . . . 2 . Utility 1 | . . . . . 1 . Weapon . | . . . . . . . Parts Attached 72 | 5 5 7 4 6 8 37 Power 13 | 1 1 . 3 . 1 7 Engine 10 | 1 1 . 3 . 1 4 Core 3 | . . . . . . 3 Reactor . | . . . . . . . Propulsion 25 | 2 2 4 . 2 4 11 Treads . | . . . . . . . Leg 25 | 2 2 4 . 2 4 11 Wheel . | . . . . . . . Hover . | . . . . . . . Flight . | . . . . . . . Utility 11 | . . 2 1 2 1 5 Device 7 | . . 2 . 2 . 3 Storage 1 | . . . 1 . . . Processor 1 | . . . . . . 1 Hackware . | . . . . . . . Protection 2 | . . . . . 1 1 Artifact . | . . . . . . . Weapon 23 | 2 2 1 . 2 2 14 Energy Gun 5 | . . . . . . 5 Energy Cannon 4 | . . . . 1 . 3 Ballistic Gun 10 | 2 2 1 . 1 1 3 Ballistic Cannon 1 | . . . . . 1 . Launcher 3 | . . . . . . 3 Special Weapon . | . . . . . . . Impact Weapon . | . . . . . . . Slashing Weapon . | . . . . . . . Piercing Weapon . | . . . . . . . Special Melee Weapon . | . . . . . . . Unidentified Prototypes 5 | . . . . . . 5 Parts Lost 19 | . . . . . . 19 Power 2 | . . . . . . 2 Propulsion 10 | . . . . . . 10 Utility 3 | . . . . . . 3 Weapon 4 | . . . . . . 4 Highest Loss Streak 10 | . . . . . . 10 To Critical Strikes . | . . . . . . . Average Slot Usage (%) 84 | . 66 75 83 95 86 83 Engine 12 | . 12 14 13 14 13 9 Core 1 | . . . . . . 3 Leg 29 | . 27 28 28 28 35 32 Device 12 | . . 9 25 12 9 10 Storage 6 | . . . 1 14 9 9 Protection 1 | . . . . . 1 4 Energy Gun 1 | . . . . . . 3 Energy Cannon 4 | . . . . 12 4 3 Ballistic Gun 11 | . 25 23 13 12 9 3 Naked Turns 1 | . 1 . . . . . Heaviest Build 48 | 8 8 9 28 31 45 48 Greatest Support 55 | 20 20 25 25 25 50 55 Greatest Overweight (x) 2 | . . . 1 1 . 2 Average Overweight (x) . | . . . . . . . Largest Inventory Capacity 15 | 5 5 5 15 15 15 15 Average Capacity 11 | 5 5 5 6 15 15 15 Most Carried 15 | 1 4 5 9 12 14 15 Average Carried 9 | . 3 4 5 11 11 13 Final Capacity 15 | 5 5 5 15 15 15 15 Final Carried 14 | 1 4 5 9 12 14 5 Class Distribution -------------------- 54% | Mutant 45% | Scavenger-Mutant Dominant Class ---------------- Mutant | -10/Materials Mutant | -10/Mines Scavenger-Mutant | -10/Exiles Mutant | -9/Mines Scavenger-Mutant | -8/Materials Scavenger-Mutant | -8/Storage Resources | -11 -10 -10 -10 -9 -8 -8 ----------- Run | Yrd Mat Min Exi Min Mat Sto Matter Collected 1225 | 225 . 153 . 118 . 729 Remotely . | . . . . . . . Salvage Created 1291 | . . 94 . 118 . 1079 Parts 69 | . . 9 . 7 . 53 Haulers Intercepted . | . . . . . . . Recyclers Shooed . | . . . . . . . Parts Field Recycled . | . . . . . . . Retrieved Matter . | . . . . . . . Parts Self-Destructed . | . . . . . . . Prevented . | . . . . . . . Kills | -11 -10 -10 -10 -9 -8 -8 ------- Run | Yrd Mat Min Exi Min Mat Sto Combat Hostiles Destroyed 28 | . . 2 . 3 . 23 Guns 8 | . . 2 . 1 . 5 Cannons 8 | . . . . 2 . 6 AOE 11 | . . . . . . 11 Classes Destroyed 9 | . . 2 . . . 7 Worker 1 | . . 1 . . . . Builder 2 | . . . . . . 2 Recycler 3 | . . . . . . 3 Operator 1 | . . . . . . 1 Grunt 19 | . . 2 . 3 . 14 Brawler 1 | . . . . . . 1 Protector 1 | . . . . . . 1 Sentry 6 | . . . . . . 6 Hunter 1 | . . . . . . 1 Thug 1 | . . . . . . 1 Best Kill Streak 14 | . . 3 . 3 . 14 Combat Bots Only 10 | . . 2 . 3 . 10 Max Kills in Single Turn 3 | . . 2 . 1 . 3 Gunslinging . | . . . . . . . Exploded 3 | . . . . . . 3 Melee . | . . . . . . . Uniques/NPCs Destroyed . | . . . . . . . Combat | -11 -10 -10 -10 -9 -8 -8 -------- Run | Yrd Mat Min Exi Min Mat Sto Hostile Shots Fired 291 | . 18 8 . 16 1 248 Missed 80 | . 6 2 . 4 1 67 Damage Taken 2556 | . 83 53 . 117 . 2303 Core 605 | . 6 . . 45 . 554 Absorbed by Shields 55 | . . . . . . 55 Ignored by Resistances 745 | . 24 16 . 35 . 670 Core Remaining (%) 89 | 100 . . . 79 . . Volleys Fired 71 | . . 4 . 12 . 55 Largest 2 | . . 2 . 2 . 2 Hottest 88 | . . 40 . 80 . 88 Shots Fired 116 | . . 8 . 24 . 84 Gun 59 | . . 8 . 12 . 39 Cannon 40 | . . . . 12 . 28 Launcher 17 | . . . . . . 17 Special . | . . . . . . . Kinetic 46 | . . 8 . 12 . 26 Thermal 53 | . . . . 12 . 41 Explosive 17 | . . . . . . 17 Electromagnetic . | . . . . . . . Robot Hit Streak 17 | . . 3 . 15 . 17 Robot Miss Streak 4 | . . 1 . . . 4 Penetration Max . | . . . . . . . Secondary Targets 1 | . . 1 . . . . Max Gunslinging Chain 1 | . . 1 . . . . Shots Hit Robots 91 | . . 6 . 14 . 71 Core Hits 93 | . . 4 . 6 . 83 Critical Kills 1 | . . . . . . 1 Critical Parts Destroyed 1 | . . . . . . 1 Critical Strikes 4 | . . . . . . 4 Burn 1 | . . . . . . 1 Meltdown 1 | . . . . . . 1 Destroy 2 | . . . . . . 2 Melee Attacks . | . . . . . . . Impact . | . . . . . . . Slashing . | . . . . . . . Piercing . | . . . . . . . Sneak Attacks . | . . . . . . . Combat Hostiles . | . . . . . . . Follow-up Attacks . | . . . . . . . Damage Inflicted 2976 | . 1 69 . 212 . 2694 Guns 782 | . . 69 . 70 . 643 Cannons 741 | . . . . 142 . 599 Explosions 1452 | . . . . . . 1452 Melee . | . . . . . . . Ramming 1 | . 1 . . . . . Kinetic 660 | . . 69 . 70 . 521 Thermal 863 | . . . . 142 . 721 Explosive 1452 | . . . . . . 1452 Electromagnetic . | . . . . . . . Impact . | . . . . . . . Slashing . | . . . . . . . Piercing . | . . . . . . . Highest Corruption 1 | . . . . . . 1 Average Corruption 1 | . . . . . . 1 Corruption Purged . | . . . . . . . Corruption Blocked . | . . . . . . . Effects 4 | . . . . . . 4 Message Errors 1 | . . . . . . 1 Matter Fused 1 | . . . . . . 1 Data Loss (minor) 1 | . . . . . . 1 Misfires 1 | . . . . . . 1 Overload Shots . | . . . . . . . Overflow Damage 29 | . . . . . . 29 Projectiles 2 | . . . . . . 2 Explosions 27 | . . . . . . 27 Melee . | . . . . . . . Knockbacks 4 | . . . . . . 4 Impact . | . . . . . . . Kinetic 4 | . . . . . . 4 Secondary . | . . . . . . . Self-Inflicted Damage 167 | . . . . . . 167 Shots 7 | . . . . . . 7 Rammed . | . . . . . . . Targets Rammed 1 | . 1 . . . . . Kicked 1 | . 1 . . . . . Crushed . | . . . . . . . Highest Temperature 90 | . . 9 . 13 . 90 Average Temperature 21 | . . 8 . 5 . 22 Received Heat Transfer 1299 | . . 42 . 81 . 1176 Siege Activations . | . . . . . . . Robots Corrupted . | . . . . . . . Combat Hostiles . | . . . . . . . Parts Fried . | . . . . . . . Impact Corruptions . | . . . . . . . Robots Melted 1 | . . . . . . 1 Combat Hostiles 1 | . . . . . . 1 Parts Melted 3 | . . . . 2 . 1 Heat Transferred 1739 | . . . . 296 . 1443 Parts Sabotaged . | . . . . . . . Parts Stolen . | . . . . . . . Parts Stripped . | . . . . . . . Power Chain Reactions . | . . . . . . . Alert | -11 -10 -10 -10 -9 -8 -8 ------- Run | Yrd Mat Min Exi Min Mat Sto Peak Influence 613 | . 30 94 . 140 . 613 Initial 9 | . . 9 . . . . Average 117 | . 2 54 . 45 . 244 Maximum Alert Level 2 | . . . . . . 2 Low Security (%) 81 | 100 100 100 . 100 100 53 Level 1 9 | . . . . . . 24 Level 2 8 | . . . . . . 22 Level 3 . | . . . . . . . Level 4 . | . . . . . . . Level 5 . | . . . . . . . High Security . | . . . . . . . Max Security . | . . . . . . . Squads Dispatched 6 | . . . . . . 6 Investigation 1 | . . . . . . 1 Extermination . | . . . . . . . Reinforcement 3 | . . . . . . 3 Assault 2 | . . . . . . 2 Garrison . | . . . . . . . Intercept . | . . . . . . . Searches Triggered . | . . . . . . . Construction Impeded 1 | . . . . . . 1 Haulers Reinforced . | . . . . . . . Active Scanning Responses . | . . . . . . . Cargo Convoy Interrupts . | . . . . . . . Stealth | -11 -10 -10 -10 -9 -8 -8 --------- Run | Yrd Mat Min Exi Min Mat Sto Distress Signals 4 | . 1 . . . . 3 Communications Jammed . | . . . . . . . Distress Signals . | . . . . . . . Times Spotted 57 | . 5 6 . 3 2 41 Peak Tracking Total 8 | . 4 2 . 3 . 8 Tactical Retreats 2 | . 1 1 . . . . Traps | -11 -10 -10 -10 -9 -8 -8 ------- Run | Yrd Mat Min Exi Min Mat Sto Traps Triggered 3 | . 2 . . . . 1 Indirectly . | . . . . . . . Trap Hack Attempts . | . . . . . . . Triggered . | . . . . . . . Disarmed . | . . . . . . . Reprogrammed . | . . . . . . . Reused . | . . . . . . . Traps Extracted . | . . . . . . . Installed . | . . . . . . . Triggered . | . . . . . . . Machines | -11 -10 -10 -10 -9 -8 -8 ---------- Run | Yrd Mat Min Exi Min Mat Sto Machines Disabled 7 | . . . . 5 . 2 Max in Single Turn 5 | . . . . 5 . 1 Machines Repaired . | . . . . . . . Machines Dismantled . | . . . . . . . Machines Sabotaged . | . . . . . . . Overloaded Fab Kills . | . . . . . . . Hacking | -11 -10 -10 -10 -9 -8 -8 --------- Run | Yrd Mat Min Exi Min Mat Sto Machines Accessed 4 | . 1 . . . . 3 Terminals 2 | . 1 . . . . 1 Fabricators . | . . . . . . . Repair Stations . | . . . . . . . Recycling Units 2 | . . . . . . 2 Scanalyzers . | . . . . . . . Garrison Access . | . . . . . . . Total Hacks 8 | . 1 . . . . 7 Successful 6 | . 1 . . . . 5 Failed 2 | . . . . . . 2 Catastrophic . | . . . . . . . Database Lockouts . | . . . . . . . Manual . | . . . . . . . Terminals 2 | . 1 . . . . 1 Fabricators . | . . . . . . . Repair Stations . | . . . . . . . Recycling Units 6 | . . . . . . 6 Scanalyzers . | . . . . . . . Garrison Access . | . . . . . . . Terminal Hacks 2 | . 1 . . . . 1 Record 1 | . 1 . . . . . Open Door 1 | . . . . . . 1 Fabricator Hacks . | . . . . . . . Repair Station Hacks . | . . . . . . . Recycling Unit Hacks 4 | . . . . . . 4 Report Inventory 2 | . . . . . . 2 Retrieve Components 2 | . . . . . . 2 Scanalyzer . | . . . . . . . Garrison Access Hacks . | . . . . . . . Unauthorized Hacks . | . . . . . . . Terminals . | . . . . . . . Fabricators . | . . . . . . . Repair Stations . | . . . . . . . Recycling Units . | . . . . . . . Scanalyzers . | . . . . . . . Garrison Access . | . . . . . . . Data Cores Recovered . | . . . . . . . Used . | . . . . . . . Hacking Detections 2 | . 1 . . . . 1 Full Trace Events 1 | . . . . . . 1 Feedback Events 1 | . . . . . . 1 Corruption 1 | . . . . . . 1 Feedback Blocked . | . . . . . . . Robot Schematics Acquired . | . . . . . . . Robots Built . | . . . . . . . Authchips . | . . . . . . . Time . | . . . . . . . Total Robot Build Rating . | . . . . . . . Part Schematics Acquired . | . . . . . . . Parts Built . | . . . . . . . Authchips . | . . . . . . . Time . | . . . . . . . Total Part Build Rating . | . . . . . . . Parts Repaired . | . . . . . . . Time . | . . . . . . . Parts Recycled . | . . . . . . . Recycled Matter . | . . . . . . . Retrieved Matter . | . . . . . . . Retrieved Components 12 | . . . . . . 12 Parts Scanalyzed . | . . . . . . . Part Schematics Acquired . | . . . . . . . Parts Damaged . | . . . . . . . Bothacking | -11 -10 -10 -10 -9 -8 -8 ------------ Run | Yrd Mat Min Exi Min Mat Sto Used RIF Installer . | . . . . . . . Robots Hacked . | . . . . . . . Non-combat . | . . . . . . . Combat . | . . . . . . . Robot Hacks Applied . | . . . . . . . Relay Couplers Released . | . . . . . . . Fabnet Peak Effective % . | . . . . . . . Robots Rewired . | . . . . . . . Allies Hacked . | . . . . . . . Hacks Repelled . | . . . . . . . Allies | -11 -10 -10 -10 -9 -8 -8 -------- Run | Yrd Mat Min Exi Min Mat Sto Total Allies 2 | . . . . . . 2 Largest Group 2 | . . . . . . 2 Highest-Rated Group 62 | . . . . . . 62 Highest-Rated Ally 31 | . . . . . . 31 Total Orders . | . . . . . . . Ally Attacks 23 | . . . . . . 23 Total Damage 430 | . . . . . . 430 Kills 4 | . . . . . . 4 Allies Corrupted . | . . . . . . . Allies Melted . | . . . . . . . Intel | -11 -10 -10 -10 -9 -8 -8 ------- Run | Yrd Mat Min Exi Min Mat Sto Robot Analysis Total . | . . . . . . . Derelict Logs Recovered 3 | . . 1 . 2 . . Drone Launches . | . . . . . . . Drone Recoveries . | . . . . . . . Exploration | -11 -10 -10 -10 -9 -8 -8 ------------- Run | Yrd Mat Min Exi Min Mat Sto Turns Passed 2469 | 64 182 340 412 560 108 803 Spaces Moved 1536 | 50 143 243 327 280 79 414 Core 7 | 6 1 . . . . . Treads . | . . . . . . . Legs 1529 | 44 142 243 327 280 79 414 Wheels . | . . . . . . . Hover . | . . . . . . . Flight . | . . . . . . . Fastest Speed 50 | 50 50 120 120 120 120 120 Average Speed 133 | 111 119 120 122 180 120 129 Slowest Speed 260 | 120 120 120 190 190 120 260 Overloaded Moves . | . . . . . . . Propulsion Burnouts . | . . . . . . . Robots Hopped . | . . . . . . . Cave-ins Triggered . | . . . . . . . Exploration Rate (%) 40 | 4 32 44 77 61 10 56 Regions Visited 6 Branch Regions 4 Pre-discovered Areas 1 | . . . . 1 . . Known Exits Taken . | . . . . . . . Unknown Exits Taken 6 | 1 1 1 1 1 1 . Scrap Searched . | . . . . . . . Spaces Dug . | . . . . . . . Terrain Destroyed 128 | . . . . 25 . 103 Melee . | . . . . . . . Projectile 1 | . . . . . . 1 AOE 127 | . . . . 25 . 102 Terrain Rammed . | . . . . . . . Walls Destroyed . | . . . . . . . Machines Disabled . | . . . . . . . Actions | -11 -10 -10 -10 -9 -8 -8 --------- Run | Yrd Mat Min Exi Min Mat Sto Total 1839 | 55 151 286 339 311 91 606 Wait 91 | . . 21 1 11 . 58 Move 1530 | 49 142 242 326 279 78 414 Hop . | . . . . . . . Pick Up 25 | 1 3 4 3 3 2 9 Fast Attach 33 | 5 5 2 2 . 3 16 Attach 23 | . . . . 3 4 16 Detach 13 | . . 1 2 . 3 7 Swap 16 | . . 5 2 3 1 5 Drop 36 | . . 7 3 . . 26 Fire 71 | . . 4 . 12 . 55 Melee . | . . . . . . . Ram . | . . . . . . . Kick 1 | . 1 . . . . . Crush . | . . . . . . . Escape Stasis . | . . . . . . . Rewire . | . . . . . . . Trap . | . . . . . . . Miscellaneous . | . . . . . . . Route ------- -11/Scrapyard -10/Materials -10/Mines (discovered 2 exits: [*Mat] / [*Exi]) -10/Exiles -9/Mines -8/Materials (discovered 2 exits: Fac / *Sto) -8/Storage History --------- Turn | Location | Event 8 | -11/Scrapyard | Discovered new exit (range 15) 65 | -11/Scrapyard | Entered Materials 183 | -10/Materials | Discovered new exit (range 15) 247 | -10/Materials | Entered Mines 306 | -10/Mines | Build established: Mutant 358 | -10/Mines | Learned 2 Materials zone layouts 366 | -10/Mines | Met a Derelict bent on vengeance 557 | -10/Mines | Discovered new exit (range 13) 573 | -10/Mines | Assembled infested the area 582 | -10/Mines | Deemed a non-threat by the Exiles lab entrance 582 | -10/Mines | Discovered new exit (range 5) 587 | -10/Mines | Entered Exiles 630 | -10/Exiles | Met 8R-AWN 658 | -10/Exiles | Met EX-HEX 703 | -10/Exiles | Met EX-DEC 720 | -10/Exiles | Build established: Scavenger-Mutant 743 | -10/Exiles | Visited The Gauntlet 987 | -10/Exiles | Discovered new exit (range 11) 999 | -10/Exiles | Entered Mines 1176 | -9/Mines | Received a Rocket Launcher from a helpful Derelict 1226 | -9/Mines | Learned location of 1 exit from Materials 1244 | -9/Mines | Build established: Mutant 1534 | -9/Mines | Discovered new exit (range 8) 1559 | -9/Mines | Entered Materials 1559 | -8/Materials | Evolved 4 slots: Power x1, Propulsion x2, Utility x1 1560 | -8/Materials | Identified exit to Factory 1591 | -8/Materials | Discovered new exit (range 15) 1667 | -8/Materials | Entered Storage 1681 | -8/Storage | Met a pair of Derelict thieves 2345 | -8/Storage | Destroyed 10 combat bots 2350 | -8/Storage | Lost 8 parts (1p5n2w) 2410 | -8/Storage | Core integrity fell below 50% 2463 | -8/Storage | Core integrity fell below 20% 2470 | -8/Storage | Destroyed by Y-45 Defender with Beam Rifle Last Messages --------------- K-01 Serf collects debris. System corrupted: Component data lost. Lgt. Angular Momentum Engine destroyed. G-50 Soldier suffers critical hit (Meltdown). Assault Rifle destroyed. Aluminum Leg destroyed. Imp. Heat Sink destroyed. Critical hit (Burn: +37). Aluminum Leg destroyed. W-25 Informer distress signal alerts nearby ally. Adv. Beam Cannon destroyed. K-01 Serf destroyed. G-47 Trooper destroyed. Acquired 50 matter. Critical hit (Burn: +37). Aluminum Leg destroyed. M-28 Smith repairs G-47 Trooper. Aluminum Leg destroyed. Hrd. Light Armor Plating destroyed. Map ----- +----------------------------------------------------+ | ? ????# """"" #?# """ #???""" #??????????????? | | ? #???# """"" ### """ #?? """ #??????????????? | | ? #???# """"" # #? #??????????????? | | #+#???# # # # """????????????????? | | #########[##*#### """ #??????????????? | | ^ !% % ## """ #??????????????? | | ^ *= / #??????????????? | | ] % # #??????????????? | | ^ % ## ! #??????????????? | | ^ "" /# ## # ####??????????????? | | """" = "T #^ # ##???????????????????? | | """" # % ## ####????????????????????? | | """" #" ! """ ## #???????????????????????? | | """ #T """ ## ##???????????????????????? | | """ #" """ ## #????????????????????????? | | + ## #????????????????????????? | | # ## #????????????????????????? | | ##"T"##### ## #?????##?????????????????? | | ?#####???# # ###### ###???????????????? | | ?????????############ # ????????????????? | | ???????????? ?# # """ #???????????????? | | ???????????? """ !# # """ #???????????????? | | ???????????# """ # = #* """ #???????????????? | | ???????????# """ /*% +=Y #???????????????? | | ##########?# # #mgY """ #???????????????? | | ### """ # #@= """w#???????????????? | | """"" !""# """ ?# # """ #???????????????? | | """"" Y"# """ ?# # Y #???????????????? | | """"" ""#?? ??# ########+#???????????????? | | ###?# ###??#####????????????????????????? | | #???##??????????????????????????????????? | | #???????????????????????????????????????? | | #???????????????????????????????????????? | | ##########???????????????????????????????????????? | | #????????????????????????????????????????? | | ] """ #????????????????????????????????????????? | | """ #????????????????????????????????????????? | | """ #????????????????????????????????????????? | | #????????????????????????????????????????? | | """ #????????????????????????????????????????? | | """ ##???????????????????????????????????????? | | """ #???????????????????????????????????????? | | % ##???????????????????????????????????????? | | #########????????????????????????????????????????? | | !#???????????????????????????????????????????????? | | #???????????????????????????????????????????????? | | ##???????????????????????????????????????????????? | | #????????????????????????????????????????????????? | | ?????????????????????????????????????????????????? | | ?????????????????????????????????????????????????? | +----------------------------------------------------+ Best States ------------- Heat Dissipation 49 Energy Generation 27 Energy Capacity 430 Matter Stores 300 Matter Capacity 300 Sight Range 16 Terrain Scan Density 110 Armor Coverage 150 Resistance: KI 20 Resistance: TH 20 Resistance: EX 20 Resistance: EM 20 Resistance: I 20 Resistance: S 20 Resistance: P 20 Evasion (%) 55 Offensive Hacking 10 Item Schematics ----------------- None Robot Schematics ------------------ None Fabricated ------------ Nothing Alien Tech Used ----------------- None Achievements -------------- Maybe Next Time I'll Detach My Launcher Challenges ------------ None Game ------ Seed MediumExplosiveMultirail Manual? 0 Play Time 00:33:49 Cumulative 32.3 hours Start 2024.04.06 @ 19:32:59 End 2024.04.10 @ 17:30:14 Sessions 3 Manual Loads 0 Difficulty Adventurer Special Mode None Game No. 39 Rogue 0 Adventurer 39 Explorer 0 Win Type - Total 0 Types 0/0/0/0/0/0/0/0/0 Lore% 20 Gallery% 32 Achievement% 25 Wizard Run 0 Options --------- Layout 1 ASCII 0 Keyboard 1 Movement Numpad Keybinds 0 Fullscreen 1 Font 24/Smallcaps Map View 50x35 Zoom Use 12% Tactical HUD 0 Map Filters NONE Filters NONE Steam 1 RUN: 93d264ec-67ea-44ac-bf3b-9f1f801722e2